Workbook

Sheet 名单
A1: 附件：
A2: 2023下半年公开招聘编制外聘用人员面试成绩及体检考察名单
A3: 序号 | B3: 用人部门 | C3: 岗位 | D3: 岗位代码 | E3: 姓名 | F3: 性别 | G3: 专业测试成绩（占50%） | H3: 结构化面试成绩或试讲成绩（占50%） | I3: 面试成绩（总） | J3: 是否进入体检考察环节 | K3: 备注
A4: 1 | B4: 教务处 | C4: 行政人员 | D4: A01 | E4: 张松 | F4: 男 | G4: 78 | H4: 81.67 | I4: 79.84 | J4: 否
A5: 2 | E5: 贺旭 | F5: 女 | G5: 91 | H5: 85.33 | I5: 88.17 | J5: 是
A6: 3 | E6: 邓云 | F6: 女 | G6: 60 | H6: 78.67 | I6: 69.34 | J6: 否
A7: 4 | B7: 学生工作处 | C7: 行政人员 | D7: A02 | E7: 陈江湖 | F7: 男 | G7: 84 | H7: 80 | I7: 82 | J7: 否
A8: 5 | E8: 陈勇 | F8: 男 | G8: —— | H8: —— | I8: —— | J8: 否 | K8: 缺考
A9: 6 | E9: 张爽 | F9: 男 | G9: 87 | H9: 85 | I9: 86 | J9: 是
A10: 7 | B10: 水利工程系党总支 | C10: 专职辅导员 | D10: A03 | E10: 罗爱霞 | F10: 女 | G10: 78 | H10: 84.67 | I10: 81.34 | J10: 是
A11: 8 | E11: 王束花 | F11: 女 | G11: —— | H11: —— | I11: —— | J11: 否 | K11: 缺考
A12: 9 | B12: 电力工程系党总支 | C12: 专职辅导员 | D12: A04 | E12: 吴元慧 | F12: 女 | G12: 85 | H12: 85.67 | I12: 85.34 | J12: 是
A13: 10 | E13: 唐严茂 | F13: 男 | G13: —— | H13: —— | I13: —— | J13: 否 | K13: 缺考
A14: 11 | E14: 龙洋风 | F14: 女 | G14: 75 | H14: 80.33 | I14: 77.67 | J14: 否
A15: 12 | B15: 土木工程系党总支 | C15: 专职辅导员 | D15: A05 | E15: 陈秋妤 | F15: 女 | G15: 85 | H15: 86 | I15: 85.5 | J15: 是
A16: 13 | E16: 杨玉江 | F16: 男 | G16: —— | H16: —— | I16: —— | J16: 否 | K16: 缺考
A17: 14 | E17: 王任英 | F17: 女 | G17: 75 | H17: 81 | I17: 78 | J17: 否
A18: 15 | B18: 管理工程系党总支 | C18: 专职辅导员 | D18: A06 | E18: 刘屹 | F18: 男 | G18: 85 | H18: 84.67 | I18: 84.84 | J18: 是
A19: 16 | E19: 罗安杰 | F19: 男 | G19: 83 | H19: 81 | I19: 82 | J19: 否
A20: 17 | E20: 尹倩 | F20: 女 | G20: 78 | H20: 79.67 | I20: 78.84 | J20: 否
A21: 18 | B21: 智能工程系党总支 | C21: 专职辅导员 | D21: A07 | E21: 王晨晨 | F21: 女 | G21: —— | H21: —— | I21: —— | J21: 否 | K21: 缺考
A22: 19 | E22: 王丽红 | F22: 女 | G22: 0 | H22: 86.33 | I22: 43.17 | J22: 否
A23: 20 | E23: 张颖 | F23: 女 | G23: 73 | H23: 80.67 | I23: 76.84 | J23: 是
A24: 21 | B24: 水利工程系 | C24: 专职实训室管理员 | D24: B02 | E24: 王雷 | F24: 男 | G24: 64.34 | H24: 86.34 | I24: =G24*0.5+H24*0.5 -> 75.34 | J24: 否
A25: 22 | E25: 田爱民 | F25: 男 | G25: —— | H25: =250/3 -> 83.33 | I25: =H25/2 -> 41.67 | J25: 否
A26: 23 | E26: 何业军 | F26: 男 | G26: 83.00 | H26: =266/3 -> 88.67 | I26: 85.83 | J26: 是
A27: 24 | B27: 电力工程系 | C27: 专任教师 | D27: B03 | E27: 徐志波 | F27: 男 | G27: —— | H27: —— | I27: —— | J27: 否 | K27: 缺考
A28: 25 | E28: 吕磊 | F28: 男 | G28: 43.50 | H28: 66.33 | I28: 54.92 | J28: 否
A29: 26 | C29: 专任教师 | D29: B04 | E29: 王兴志 | F29: 男 | G29: —— | H29: —— | I29: —— | J29: 否 | K29: 缺考
A30: 27 | E30: 石本幸 | F30: 男 | G30: —— | H30: 58.00 | I30: =H30/2 -> 29.00 | J30: 否
A31: 28 | E31: 李金琼 | F31: 女 | G31: —— | H31: —— | I31: —— | J31: 否 | K31: 缺考
A32: 29 | E32: 杨显威 | F32: 男 | G32: —— | H32: —— | I32: —— | J32: 否 | K32: 缺考
A33: 30 | E33: 李文莉 | F33: 女 | G33: —— | H33: —— | I33: —— | J33: 否 | K33: 缺考
A34: 31 | E34: 陆大洲 | F34: 男 | G34: —— | H34: —— | I34: —— | J34: 否 | K34: 缺考
A35: 32 | C35: 专职实训室管理员 | D35: B05 | E35: 孙娜 | F35: 女 | G35: 90.00 | H35: 83.40 | I35: =G35*0.5+H35*0.5 -> 86.70 | J35: 是
A36: 33 | E36: 王建云 | F36: 男 | G36: —— | H36: —— | I36: —— | J36: 否 | K36: 缺考
A37: 34 | B37: 土木工程系 | C37: 专任教师 | D37: B06 | E37: 焦飞越 | F37: 男 | G37: —— | H37: —— | I37: —— | J37: 否 | K37: 缺考
A38: 35 | E38: 徐业政 | F38: 男 | G38: 88.00 | H38: 64.33 | I38: 76.17 | J38: 是
A39: 36 | E39: 周炯炯 | F39: 男 | G39: 74.00 | H39: 50.33 | I39: 62.17 | J39: 否
A40: 37 | D40: B07 | E40: 李兴进 | F40: 女 | G40: 63.30 | H40: 80.00 | I40: 71.65 | J40: 是
A41: 38 | E41: 莫夏 | F41: 女 | G41: —— | H41: —— | I41: —— | J41: 否 | K41: 缺考
A42: 39 | D42: B08 | E42: 张杨义凯 | F42: 男 | G42: 64.00 | H42: 88.00 | I42: =G42*0.5+H42*0.5 -> 76.00 | J42: 是
A43: 40 | E43: 陈泽 | F43: 男 | G43: —— | H43: —— | I43: —— | J43: 否 | K43: 缺考
A44: 41 | E44: 吴兴正 | F44: 男 | G44: 48.00 | H44: 69.67 | I44: =G44*0.5+H44*0.5 -> 58.83 | J44: 否
A45: 42 | D45: B09 | E45: 鲁梦飞 | F45: 男 | G45: —— | H45: —— | I45: —— | J45: 否 | K45: 缺考
A46: 43 | E46: 任印文 | F46: 男 | G46: —— | H46: —— | I46: —— | J46: 否 | K46: 缺考
A47: 44 | E47: 胡芳 | F47: 男 | G47: —— | H47: —— | I47: —— | J47: 否 | K47: 缺考
A48: 45 | D48: B10 | E48: 何孝英 | F48: 女 | G48: —— | H48: —— | I48: —— | J48: 否 | K48: 缺考
A49: 46 | E49: 刘俊娜 | F49: 女 | G49: 82.30 | H49: 75.33 | I49: =G49*0.5+H49*0.5 -> 78.82 | J49: 是
A50: 47 | E50: 王昌周 | F50: 男 | G50: —— | H50: —— | I50: —— | J50: 否 | K50: 缺考
A51: 48 | C51: 专职实训室管理员 | D51: B11 | E51: 金晶 | F51: 女 | G51: 52.30 | H51: 65.40 | I51: 58.85 | J51: 否
A52: 49 | B52: 管理工程系 | C52: 专任教师 | D52: B12 | E52: 王杰 | F52: 男 | G52: —— | H52: —— | I52: —— | J52: 否 | K52: 缺考
A53: 50 | E53: 邓宏港 | F53: 女 | G53: 56.70 | H53: 69.00 | I53: 62.85 | J53: 否
A54: 51 | E54: 张家园 | F54: 女 | G54: —— | H54: —— | I54: —— | J54: 否 | K54: 缺考
A55: 52 | D55: B13 | E55: 张莉 | F55: 女 | G55: —— | H55: —— | I55: —— | J55: 否 | K55: 缺考
A56: 53 | E56: 王忠林 | F56: 男 | G56: —— | H56: —— | I56: —— | J56: 否 | K56: 缺考
A57: 54 | E57: 潘再滢 | F57: 女 | G57: —— | H57: —— | I57: —— | J57: 否 | K57: 缺考
A58: 55 | D58: B14 | E58: 李丹 | F58: 女 | G58: 66.67 | H58: 63.67 | I58: =G58*0.5+H58*0.5 -> 65.17 | J58: 否
A59: 56 | E59: 田诗行 | F59: 男 | G59: 81.00 | H59: 88.33 | I59: 84.67 | J59: 是
A60: 57 | E60: 刘放放 | F60: 男 | G60: —— | H60: —— | I60: —— | J60: 否 | K60: 缺考
A61: 58 | D61: B15 | E61: 彭春瑜 | F61: 女 | G61: 91.00 | H61: 70.67 | I61: 80.83 | J61: 是
A62: 59 | E62: 张清惠 | F62: 女 | G62: —— | H62: —— | I62: —— | J62: 否 | K62: 缺考
A63: 60 | E63: 张青 | F63: 女 | G63: 85.33 | H63: 60.33 | I63: =G63*0.5+H63*0.5 -> 72.83 | J63: 否
A64: 61 | C64: 专职实训室管理员 | D64: B16 | E64: 杨雨璐 | F64: 女 | G64: 100.00 | H64: 91.00 | I64: 95.50 | J64: 是
A65: 62 | E65: 何瑾 | F65: 女 | G65: 0.00 | H65: 88.33 | I65: 44.17 | J65: 否
A66: 63 | E66: 王伦梅 | F66: 女 | G66: 0.00 | H66: 87.67 | I66: 43.84 | J66: 否
A67: 64 | B67: 智能工程系 | C67: 专任教师 | D67: B17 | E67: 王亦霜 | F67: 女 | G67: 64.00 | H67: 74.00 | I67: 69.00 | J67: 是
A68: 65 | E68: 龙汐 | F68: 女 | G68: —— | H68: —— | I68: —— | J68: 否 | K68: 缺考
A69: 66 | E69: 刘锦涛 | F69: 男 | G69: —— | H69: —— | I69: —— | J69: 否 | K69: 缺考
A70: 67 | E70: 文朝庭 | F70: 男 | G70: —— | H70: —— | I70: —— | J70: 否 | K70: 缺考
A71: 68 | E71: 赵兴虎 | F71: 男 | G71: —— | H71: 57.00 | I71: =H71/2 -> 28.50 | J71: 否
A72: 69 | E72: 吴兴国 | F72: 男 | G72: 47.00 | H72: —— | I72: =G72/2 -> 23.50 | J72: 否
A73: 70 | E73: 杨昌昊 | F73: 男 | G73: 79.00 | H73: 72.33 | I73: =G73*0.5+H73*0.5 -> 75.67 | J73: 是
A74: 71 | E74: 唐钱东 | F74: 男 | G74: 61.00 | H74: 66.00 | I74: =G74*0.5+H74*0.5 -> 63.50 | J74: 是
A75: 72 | E75: 卯成华 | F75: 男 | G75: —— | H75: —— | I75: —— | J75: 否 | K75: 缺考
A76: 73 | E76: 黄冬 | F76: 男 | G76: —— | H76: —— | I76: —— | J76: 否 | K76: 缺考
A77: 74 | E77: 任登静 | F77: 女 | G77: —— | H77: —— | I77: —— | J77: 否 | K77: 缺考
A78: 75 | E78: 杨青云 | F78: 女 | G78: —— | H78: —— | I78: —— | J78: 否 | K78: 缺考
A79: 76 | C79: 专职实训室管理员 | D79: B18 | E79: 张剑雄 | F79: 男 | G79: 100.00 | H79: =253/3 -> 84.33 | I79: =G79*0.5+H79*0.5 -> 92.17 | J79: 是
A80: 77 | E80: 王雷 | F80: 男 | G80: —— | H80: —— | I80: —— | J80: 否 | K80: 缺考
A81: 78 | E81: 黄雪 | F81: 女 | G81: —— | H81: —— | I81: —— | J81: 否 | K81: 缺考
A82: 79 | B82: 公共基础教学部 | C82: 专任教师 | D82: B19 | E82: 江昆 | F82: 男 | G82: 87.00 | H82: 83.67 | I82: =G82*0.5+H82*0.5 -> 85.33 | J82: 是
A83: 80 | E83: 王雪 | F83: 女 | G83: —— | H83: —— | I83: —— | J83: 否 | K83: 缺考
A84: 81 | E84: 王敏 | F84: 女 | G84: —— | H84: —— | I84: —— | J84: 否 | K84: 缺考
A85: 82 | D85: B20 | E85: 韦峰 | F85: 男 | G85: —— | H85: —— | I85: —— | J85: 否 | K85: 缺考
A86: 83 | E86: 张旭东 | F86: 男 | G86: 80.33 | H86: —— | I86: =G86/2 -> 40.17 | J86: 否
A87: 84 | E87: 李壮 | F87: 男 | G87: 84.33 | H87: —— | I87: =G87/2 -> 42.17 | J87: 否
A88: 85 | B88: 马克思主义教学部 | C88: 专任教师 | D88: B21 | E88: 张凌川 | F88: 男 | G88: —— | H88: —— | I88: —— | J88: 否 | K88: 缺考
A89: 86 | E89: 黄晶 | F89: 女 | G89: 83.67 | H89: 75.00 | I89: =G89*0.5+H89*0.5 -> 79.34 | J89: 否
A90: 87 | E90: 张语烟 | F90: 女 | G90: 86.67 | H90: 83.00 | I90: =G90*0.5+H90*0.5 -> 84.84 | J90: 是
